[Event "SS Manhem Chess Week 2022: IM Tournament"]
[Site "Schackcentrum, Vegagatan 20, Gothenburg, Sweden"]
[Date "2022.08.10"]
[Round "6.2"]
[White "Rydstrom, Tom"]
[Black "Kucuksari, Kaan"]
[Result "0-1"]
[TimeControl "90 minutes for 40 moves + 30 minutes for the rest of the game + 30 seconds per move from move one."]
[WhiteTitle "FM"]
[BlackTitle "FM"]
[WhiteFideId "1714830"]
[BlackFideId "6380166"]
[WhiteElo "2304"]
[BlackElo "2398"]

1. e4 {[%clk 01:30:59]} c5 {[%clk 01:29:32]} {[%emt 00:01:28]} 2. Nc3 {[%clk
01:30:04]} {[%emt 00:01:26]} Nc6 {[%clk 01:29:55]} {[%emt 00:00:07]} 3. Bc4
{[%clk 01:23:36]} {[%emt 00:06:56]} e6 {[%clk 01:30:19]} {[%emt 00:00:07]} 4.
f4 {[%clk 01:23:15]} {[%emt 00:00:52]} Nf6 {[%clk 01:23:43]} {[%emt 00:07:05]}
5. e5 {[%clk 01:20:54]} {[%emt 00:02:50]} d5 {[%clk 01:23:53]} {[%emt
00:00:21]} 6. Bb5 {[%clk 01:13:16]} {[%emt 00:08:08]} Nd7 {[%clk 01:23:43]}
{[%emt 00:00:39]} 7. Nf3 {[%clk 01:12:56]} {[%emt 00:00:50]} Qc7 {[%clk
01:14:30]} {[%emt 00:09:43]} 8. O-O {[%clk 01:11:58]} {[%emt 00:01:27]} a6
{[%clk 01:13:27]} {[%emt 00:01:34]} 9. Bxc6 {[%clk 01:11:24]} {[%emt 00:01:04]}
Qxc6 {[%clk 01:13:53]} {[%emt 00:00:04]} 10. d3 {[%clk 01:11:41]} {[%emt
00:00:13]} b5 {[%clk 01:05:32]} {[%emt 00:08:51]} 11. Bd2 {[%clk 01:10:54]}
{[%emt 00:01:16]} Be7 {[%clk 01:01:19]} {[%emt 00:04:43]} 12. Qe1 {[%clk
01:04:47]} {[%emt 00:06:37]} Bb7 {[%clk 00:56:08]} {[%emt 00:05:41]} 13. Qg3
{[%clk 01:03:30]} {[%emt 00:01:47]} g6 {[%clk 00:53:08]} {[%emt 00:03:31]} 14.
Kh1 {[%clk 00:55:03]} {[%emt 00:08:57]} O-O-O {[%clk 00:50:51]} {[%emt
00:02:47]} 15. a4 {[%clk 00:55:03]} {[%emt 00:00:30]} b4 {[%clk 00:49:56]}
{[%emt 00:01:24]} 16. Ne2 {[%clk 00:52:58]} {[%emt 00:02:34]} a5 {[%clk
00:40:14]} {[%emt 00:10:13]} 17. Rfc1 {[%clk 00:51:23]} {[%emt 00:02:05]} h6
{[%clk 00:34:47]} {[%emt 00:05:57]} 18. c3 {[%clk 00:50:13]} {[%emt 00:01:41]}
b3 {[%clk 00:33:24]} {[%emt 00:01:53]} 19. c4 {[%clk 00:49:54]} {[%emt
00:00:49]} d4 {[%clk 00:28:18]} {[%emt 00:05:37]} 20. Rg1 {[%clk 00:23:57]}
{[%emt 00:26:27]} g5 {[%clk 00:25:51]} {[%emt 00:02:57]} 21. Nc1 {[%clk
00:24:14]} {[%emt 00:00:12]} gxf4 {[%clk 00:14:42]} {[%emt 00:11:39]} 22. Qf2
{[%clk 00:20:07]} {[%emt 00:04:37]} Rdg8 {[%clk 00:08:58]} {[%emt 00:06:14]} 23.
Nxb3 {[%clk 00:20:36]} {[%emt 00:00:02]} Rxg2 {[%clk 00:01:14]} 24. Kxg2 {[%clk
00:17:44]} {[%emt 00:11:35]} Nxe5 {[%clk 00:01:42]} {[%emt 00:00:02]} 25. Nxa5
{[%clk 00:17:41]} {[%emt 00:00:33]} Qxf3+ {[%clk 00:02:11]} 26. Qxf3 {[%clk
00:15:47]} {[%emt 00:02:24]} Bxf3+ {[%clk 00:00:41]} {[%emt 00:02:01]} 27. Kf1
{[%clk 00:14:12]} {[%emt 00:02:05]} Nxd3 {[%clk 00:01:09]} {[%emt 00:00:01]} 28.
Ra3 {[%clk 00:11:23]} {[%emt 00:03:19]} Be4 {[%clk 00:01:38]} {[%emt 00:00:01]}
29. Nc6 {[%clk 00:08:57]} {[%emt 00:02:55]} Bg5 {[%clk 00:00:47]} {[%emt
00:01:21]} 30. Na7+ {[%clk 00:07:48]} {[%emt 00:01:40]} Kd7 {[%clk 00:00:56]}
{[%emt 00:00:21]} 31. Nb5 {[%clk 00:00:33]} {[%emt 00:07:44]} f3 {[%clk
00:00:42]} {[%emt 00:00:44]} 32. Be1 {[%clk 00:00:41]} {[%emt 00:00:22]} Nxb2
{[%clk 00:00:44]} {[%emt 00:00:28]} 33. h4 {[%clk 00:00:35]} {[%emt 00:00:35]}
Be3 {[%clk 00:00:48]} {[%emt 00:00:27]} 34. Rg7 {[%clk 00:00:53]} {[%emt
00:00:12]} Ke7 {[%clk 00:00:50]} {[%emt 00:00:28]} 35. h5 {[%clk 00:00:33]}
{[%emt 00:00:51]} Kf8 {[%clk 00:00:36]} {[%emt 00:00:44]} 36. Rg4 {[%clk
00:00:31]} {[%emt 00:00:32]} f5 {[%clk 00:00:35]} {[%emt 00:00:32]} 37. Rg6
{[%clk 00:00:32]} {[%emt 00:00:28]} Nxc4 {[%clk 00:00:44]} {[%emt 00:00:21]} 38.
Rb3 {[%clk 00:01:02]} {[%emt 00:00:01]} Bc2 {[%clk 00:00:49]} {[%emt 00:00:24]}
39. Nxd4 {[%clk 00:01:06]} {[%emt 00:00:26]} cxd4 {[%clk 00:00:39]} {[%emt
00:00:40]} 40. Rb8+ {[%clk 00:01:19]} {[%emt 00:00:17]} Ke7 {[%clk 00:00:48]}
{[%emt 00:00:20]} 41. Bh4+ {[%clk 00:00:41]} {[%emt 00:01:08]} Kd6 {[%clk
00:01:09]} {[%emt 00:00:09]} 42. Rxh8 {[%clk 00:00:47]} {[%emt 00:00:24]} Nd2+
{[%clk 00:12:29]} {[%emt 00:19:10]} 43. Ke1 {[%clk 00:31:12]} {[%emt 00:00:04]}
Ne4 {[%clk 00:12:30]} {[%emt 00:00:29]} 44. a5 {[%clk 00:21:19]} {[%emt
00:10:24]} d3 {[%clk 00:10:16]} {[%emt 00:02:44]} 45. Rd8+ {[%clk 00:20:04]}
{[%emt 00:01:45]} Ke5 {[%clk 00:09:30]} {[%emt 00:01:15]} 46. Kf1 {[%clk
00:09:46]} {[%emt 00:10:49]} d2 {[%clk 00:08:57]} {[%emt 00:01:03]} 47. Bf2
{[%clk 00:01:48]} {[%emt 00:08:28]} Nd6 {[%clk 00:04:30]} {[%emt 00:04:57]} 48.
Bg3+ {[%clk 00:01:36]} {[%emt 00:00:42]} f4 {[%clk 00:04:50]} {[%emt 00:00:10]}
0-1

[Event "SS Manhem Chess Week 2022: IM Tournament"]
[Site "Schackcentrum, Vegagatan 20, Gothenburg, Sweden"]
[Date "2022.08.10"]
[Round "6.3"]
[White "Johnson, Daniel"]
[Black "Ernst, Thomas"]
[Result "0-1"]
[TimeControl "90 minutes for 40 moves + 30 minutes for the rest of the game + 30 seconds per move from move one."]
[BlackTitle "GM"]
[WhiteFideId "1721283"]
[BlackFideId "1700065"]
[WhiteElo "2207"]
[BlackElo "2323"]

1. d4 {[%clk 01:29:56]} {[%emt 00:00:57]} Nf6 {[%clk 01:30:55]} {[%emt
00:00:12]} 2. Nc3 {[%clk 01:30:09]} {[%emt 00:00:17]} d5 {[%clk 01:30:55]}
{[%emt 00:00:30]} 3. Bf4 {[%clk 01:30:26]} {[%emt 00:00:13]} e6 {[%clk
01:29:05]} {[%emt 00:02:19]} 4. Nb5 {[%clk 01:30:25]} {[%emt 00:00:32]} Na6
{[%clk 01:28:58]} {[%emt 00:00:37]} 5. e3 {[%clk 01:29:51]} {[%emt 00:01:04]}
c6 {[%clk 01:27:59]} {[%emt 00:01:27]} 6. Nc3 {[%clk 01:30:04]} {[%emt
00:00:19]} Nc7 {[%clk 01:28:05]} {[%emt 00:00:23]} 7. a3 {[%clk 01:29:35]}
{[%emt 00:00:59]} Bd6 {[%clk 01:25:13]} {[%emt 00:03:21]} 8. Qf3 {[%clk
01:28:59]} {[%emt 00:01:07]} b5 {[%clk 01:21:48]} {[%emt 00:03:55]} 9. Bd3
{[%clk 01:25:33]} {[%emt 00:03:55]} a5 {[%clk 01:18:48]} {[%emt 00:03:30]} 10.
Nge2 {[%clk 01:23:02]} {[%emt 00:03:01]} Ba6 {[%clk 01:12:21]} {[%emt
00:06:57]} 11. O-O {[%clk 01:16:59]} {[%emt 00:06:33]} O-O {[%clk 01:09:13]}
{[%emt 00:03:38]} 12. g4 {[%clk 01:08:16]} {[%emt 00:09:12]} b4 {[%clk
01:05:23]} {[%emt 00:04:20]} 13. g5 {[%clk 00:48:34]} {[%emt 00:20:12]} Bxd3
{[%clk 01:00:26]} {[%emt 00:05:27]} 14. cxd3 {[%clk 00:47:36]} {[%emt
00:01:28]} bxc3 {[%clk 01:00:14]} {[%emt 00:00:42]} 15. gxf6 {[%clk 00:33:07]}
{[%emt 00:15:00]} Qxf6 {[%clk 00:59:36]} {[%emt 00:01:06]} 16. bxc3 {[%clk
00:26:13]} {[%emt 00:07:26]} Bxf4 {[%clk 00:57:09]} {[%emt 00:02:57]} 17. Nxf4
{[%clk 00:19:26]} {[%emt 00:07:16]} e5 {[%clk 00:56:33]} {[%emt 00:01:07]} 18.
dxe5 {[%clk 00:19:01]} {[%emt 00:00:55]} Qxe5 {[%clk 00:56:56]} {[%emt
00:00:06]} 19. c4 {[%clk 00:15:46]} {[%emt 00:03:46]} dxc4 {[%clk 00:54:06]}
{[%emt 00:03:20]} 20. Qxc6 {[%clk 00:13:27]} {[%emt 00:02:49]} cxd3 {[%clk
00:53:40]} {[%emt 00:00:57]} 21. Rad1 {[%clk 00:11:34]} {[%emt 00:02:22]} Rad8
{[%clk 00:47:38]} {[%emt 00:06:32]} 22. Rxd3 {[%clk 00:09:16]} {[%emt
00:02:48]} Rxd3 {[%clk 00:47:56]} {[%emt 00:00:13]} 23. Nxd3 {[%clk 00:09:36]}
{[%emt 00:00:10]} Qg5+ {[%clk 00:47:45]} {[%emt 00:00:38]} 24. Kh1 {[%clk
00:08:32]} {[%emt 00:01:36]} Ne6 {[%clk 00:47:07]} {[%emt 00:01:07]} 25. Qe4
{[%clk 00:04:18]} {[%emt 00:04:45]} Rd8 {[%clk 00:43:29]} {[%emt 00:04:08]} 26.
Rc1 {[%clk 00:03:56]} {[%emt 00:00:52]} Qh5 {[%clk 00:42:24]} {[%emt 00:01:33]}
27. Ne5 {[%clk 00:02:14]} {[%emt 00:02:15]} h6 {[%clk 00:39:22]} {[%emt
00:03:31]} 28. Nc6 {[%clk 00:00:40]} {[%emt 00:02:04]} Ng5 {[%clk 00:33:54]}
{[%emt 00:05:57]} 29. Qf5 {[%clk 00:00:32]} {[%emt 00:00:39]} g6 {[%clk
00:28:24]} {[%emt 00:05:59]} 30. Qf6 {[%clk 00:00:32]} {[%emt 00:00:32]} Rd1+
{[%clk 00:27:01]} {[%emt 00:01:52]} 31. Rxd1 {[%clk 00:00:53]} {[%emt
00:00:10]} Qxd1+ {[%clk 00:27:27]} {[%emt 00:00:03]} 32. Kg2 {[%clk 00:01:14]}
{[%emt 00:00:09]} Qg4+ {[%clk 00:27:33]} {[%emt 00:00:22]} 33. Kf1 {[%clk
00:00:35]} {[%emt 00:01:11]} Ne4 {[%clk 00:26:34]} {[%emt 00:01:27]} 34. Qd8+
{[%clk 00:00:32]} {[%emt 00:00:35]} Kg7 {[%clk 00:26:36]} {[%emt 00:00:27]} 35.
Ne7 {[%clk 00:00:33]} {[%emt 00:00:30]} Qf3 {[%clk 00:25:54]} {[%emt 00:01:11]}
36. Qg8+ {[%clk 00:00:34]} {[%emt 00:00:31]} Kf6 {[%clk 00:26:13]} {[%emt
00:00:10]} 37. Qh8+ {[%clk 00:00:32]} {[%emt 00:00:33]} Ke6 {[%clk 00:24:18]}
{[%emt 00:02:19]} 38. Qb2 {[%clk 00:00:31]} {[%emt 00:00:36]} Kxe7 {[%clk
00:20:18]} {[%emt 00:04:30]} 39. Qe5+ {[%clk 00:00:39]} {[%emt 00:00:21]} Kd7
{[%clk 00:20:28]} {[%emt 00:00:19]} 40. Qd5+ {[%clk 00:00:44]} {[%emt
00:00:27]} Kc7 {[%clk 00:20:40]} {[%emt 00:00:18]} 41. Qxa5+ {[%clk 00:29:30]}
{[%emt 00:01:45]} Kd6 {[%clk 00:50:36]} {[%emt 00:00:31]} 42. Qb4+ {[%clk
00:24:10]} {[%emt 00:05:53]} Ke6 {[%clk 00:50:08]} {[%emt 00:00:57]} 43. Qb3+
{[%clk 00:22:24]} {[%emt 00:02:17]} Kf6 {[%clk 00:48:57]} {[%emt 00:01:35]} 44.
Qb2+ {[%clk 00:22:34]} {[%emt 00:00:26]} Kg5 {[%clk 00:46:49]} {[%emt
00:02:35]} 45. a4 {[%clk 00:20:55]} {[%emt 00:02:12]} Qh1+ {[%clk 00:44:40]}
{[%emt 00:02:37]} 46. Ke2 {[%clk 00:21:09]} {[%emt 00:00:17]} Qxh2 {[%clk
00:44:53]} {[%emt 00:00:17]} 47. Kf3 {[%clk 00:18:56]} {[%emt 00:02:43]} f5
{[%clk 00:41:38]} {[%emt 00:03:45]} 48. a5 {[%clk 00:18:42]} {[%emt 00:00:45]}
Qh1+ {[%clk 00:41:25]} {[%emt 00:00:40]} 49. Ke2 {[%clk 00:18:54]} {[%emt
00:00:20]} Qg2 {[%clk 00:41:32]} {[%emt 00:00:17]} 50. Qb4 {[%clk 00:17:29]}
{[%emt 00:02:01]} Qxf2+ {[%clk 00:41:41]} {[%emt 00:00:21]} 51. Kd3 {[%clk
00:17:55]} {[%emt 00:00:04]} Qa2 {[%clk 00:37:54]} {[%emt 00:04:12]} 52. Qe7+
{[%clk 00:17:25]} {[%emt 00:01:06]} Kg4 {[%clk 00:38:01]} {[%emt 00:00:20]} 0-1

[Event "SS Manhem Chess Week 2022: IM Tournament"]
[Site "Schackcentrum, Vegagatan 20, Gothenburg, Sweden"]
[Date "2022.08.10"]
[Round "6.4"]
[White "Mitusov, Semen"]
[Black "Olsson, William"]
[Result "1-0"]
[TimeControl "90 minutes for 40 moves + 30 minutes for the rest of the game + 30 seconds per move from move one."]
[WhiteTitle "FM"]
[BlackTitle "FM"]
[WhiteFideId "14151049"]
[BlackFideId "1741721"]
[WhiteElo "2415"]
[BlackElo "2311"]

1. e4 {[%clk 01:30:17]} {[%emt 00:00:43]} c5 {[%clk 01:30:55]} {[%emt
00:00:06]} 2. Nf3 {[%clk 01:29:00]} {[%emt 00:01:46]} d6 {[%clk 01:31:19]}
{[%emt 00:00:05]} 3. d4 {[%clk 01:29:27]} {[%emt 00:00:04]} cxd4 {[%clk
01:31:45]} {[%emt 00:00:04]} 4. Nxd4 {[%clk 01:29:55]} {[%emt 00:00:02]} Nf6
{[%clk 01:32:09]} {[%emt 00:00:06]} 5. Nc3 {[%clk 01:30:23]} {[%emt 00:00:02]}
g6 {[%clk 01:32:33]} {[%emt 00:00:05]} 6. Be3 {[%clk 01:30:50]} {[%emt
00:00:04]} Bg7 {[%clk 01:32:59]} {[%emt 00:00:03]} 7. f3 {[%clk 01:31:18]}
{[%emt 00:00:03]} O-O {[%clk 01:33:25]} {[%emt 00:00:04]} 8. Qd2 {[%clk
01:31:46]} {[%emt 00:00:02]} Nc6 {[%clk 01:33:48]} {[%emt 00:00:07]} 9. O-O-O
{[%clk 01:31:19]} {[%emt 00:00:56]} d5 {[%clk 01:32:53]} {[%emt 00:01:26]} 10.
Nxc6 {[%clk 01:31:35]} {[%emt 00:00:14]} bxc6 {[%clk 01:33:16]} {[%emt
00:00:07]} 11. exd5 {[%clk 01:32:03]} {[%emt 00:00:03]} Nxd5 {[%clk 01:33:38]}
{[%emt 00:00:08]} 12. Bd4 {[%clk 01:32:28]} {[%emt 00:00:04]} e5 {[%clk
01:30:06]} {[%emt 00:04:02]} 13. Bc5 {[%clk 01:32:52]} {[%emt 00:00:07]} Be6
{[%clk 01:30:34]} {[%emt 00:00:02]} 14. Ne4 {[%clk 01:24:08]} {[%emt 00:09:15]}
Re8 {[%clk 01:30:54]} {[%emt 00:00:08]} 15. h4 {[%clk 01:14:05]} {[%emt
00:10:34]} h6 {[%clk 01:31:06]} {[%emt 00:00:17]} 16. c4 {[%clk 01:10:23]}
{[%emt 00:04:13]} Nb6 {[%clk 01:27:44]} {[%emt 00:03:52]} 17. Qc2 {[%clk
01:05:39]} {[%emt 00:05:14]} Qc7 {[%clk 01:27:38]} {[%emt 00:00:34]} 18. Bd6
{[%clk 01:04:08]} {[%emt 00:02:03]} Qc8 {[%clk 01:27:56]} {[%emt 00:00:12]} 19.
a4 {[%clk 01:02:55]} {[%emt 00:01:44]} Bf5 {[%clk 01:18:11]} {[%emt 00:10:15]}
20. a5 {[%clk 00:58:24]} {[%emt 00:05:01]} Nd7 {[%clk 01:18:14]} {[%emt
00:00:26]} 21. c5 {[%clk 00:55:01]} {[%emt 00:03:53]} Nf6 {[%clk 01:15:30]}
{[%emt 00:03:13]} 22. Nxf6+ {[%clk 00:48:02]} {[%emt 00:07:30]} Bxf6 {[%clk
01:15:52]} {[%emt 00:00:08]} 23. Bd3 {[%clk 00:48:07]} {[%emt 00:00:25]} Bxd3
{[%clk 01:13:39]} {[%emt 00:02:43]} 24. Rxd3 {[%clk 00:47:28]} {[%emt
00:01:09]} e4 {[%clk 01:04:12]} {[%emt 00:09:57]} 25. Re3 {[%clk 00:39:32]}
{[%emt 00:08:26]} Qd8 {[%clk 01:00:17]} {[%emt 00:04:25]} 26. fxe4 {[%clk
00:38:59]} {[%emt 00:01:02]} Qxa5 {[%clk 00:53:48]} {[%emt 00:06:59]} 27. e5
{[%clk 00:37:50]} {[%emt 00:01:40]} Bg7 {[%clk 00:47:28]} {[%emt 00:06:50]} 28.
h5 {[%clk 00:36:53]} {[%emt 00:01:28]} g5 {[%clk 00:45:01]} {[%emt 00:02:56]}
29. Kb1 {[%clk 00:34:36]} {[%emt 00:02:47]} Qb4 {[%clk 00:38:21]} {[%emt
00:07:10]} 30. Rf1 {[%clk 00:31:34]} {[%emt 00:03:32]} Rab8 {[%clk 00:36:47]}
{[%emt 00:02:04]} 31. Bxb8 {[%clk 00:30:17]} {[%emt 00:01:47]} Qxb8 {[%clk
00:36:50]} {[%emt 00:00:27]} 32. Qf5 {[%clk 00:23:24]} {[%emt 00:07:23]} Re7
{[%clk 00:33:56]} {[%emt 00:03:23]} 33. Rfe1 {[%clk 00:23:31]} {[%emt
00:00:24]} Re6 {[%clk 00:33:01]} {[%emt 00:01:25]} 34. R1e2 {[%clk 00:22:55]}
{[%emt 00:01:06]} a5 {[%clk 00:31:20]} {[%emt 00:02:11]} 35. Ka2 {[%clk
00:17:27]} {[%emt 00:05:58]} Qb4 {[%clk 00:28:16]} {[%emt 00:03:34]} 36. Rd3
{[%clk 00:15:10]} {[%emt 00:02:45]} Qxc5 {[%clk 00:26:24]} {[%emt 00:02:24]} 37.
Rd7 {[%clk 00:13:56]} {[%emt 00:01:44]} Bf6 {[%clk 00:22:52]} {[%emt 00:04:02]}
38. Re1 {[%clk 00:10:04]} {[%emt 00:04:22]} Qc4+ {[%clk 00:13:16]} {[%emt
00:10:07]} 39. Kb1 {[%clk 00:09:39]} {[%emt 00:00:55]} Qb4 {[%clk 00:10:58]}
{[%emt 00:02:47]} 40. Red1 {[%clk 00:06:15]} {[%emt 00:03:53]} Be7 {[%clk
00:08:17]} {[%emt 00:03:12]} 41. Rf1 {[%clk 00:03:42]} {[%emt 00:03:02]} Kh8
{[%clk 00:08:34]} {[%emt 00:00:12]} 42. Qc2 {[%clk 00:01:40]} {[%emt 00:02:33]}
Kg8 {[%clk 00:04:58]} {[%emt 00:04:06]} 43. Rxf7 {[%clk 00:27:02]} {[%emt
00:05:08]} Kxf7 {[%clk 00:35:14]} {[%emt 00:00:13]} 44. Qf5+ {[%clk 00:27:16]}
{[%emt 00:00:16]} Ke8 {[%clk 00:35:28]} {[%emt 00:00:16]} 45. Qxe6 {[%clk
00:27:40]} {[%emt 00:00:06]} Qe4+ {[%clk 00:35:53]} {[%emt 00:00:05]} 46. Kc1
{[%clk 00:27:55]} {[%emt 00:00:15]} Qe1+ {[%clk 00:34:04]} {[%emt 00:02:19]} 47.
Kc2 {[%clk 00:27:27]} {[%emt 00:00:58]} Qe4+ {[%clk 00:32:52]} {[%emt
00:01:42]} 48. Rd3 {[%clk 00:24:54]} {[%emt 00:03:03]} Qe2+ {[%clk 00:30:47]}
{[%emt 00:02:35]} 49. Kc3 {[%clk 00:24:50]} {[%emt 00:00:34]} Qe1+ {[%clk
00:31:01]} {[%emt 00:00:16]} 50. Kb3 {[%clk 00:24:47]} {[%emt 00:00:33]} Qb4+
{[%clk 00:31:12]} {[%emt 00:00:18]} 51. Kc2 {[%clk 00:24:36]} {[%emt 00:00:42]}
Qa4+ {[%clk 00:31:15]} {[%emt 00:00:28]} 52. Kb1 {[%clk 00:23:55]} {[%emt
00:01:10]} Qe4 {[%clk 00:31:39]} {[%emt 00:00:06]} 53. Qg6+ {[%clk 00:24:21]}
{[%emt 00:00:04]} 1-0